[Event "Titled Tuesday Blitz July 18 Early 2023"]
[White "Zaksaite, Salomeja"]
[Black "Santos Flores, Alberto"]
[WhiteFideId "12801496"]
[BlackFideId "3601234"]
[WhiteElo "2292"]
[BlackElo "2511"]
[Result "0-1"]
[Round "2"]
[TimeControl "180+2"]
[Date "2023.07.18"]
[WhiteClock "0:00:00"]
[BlackClock "0:00:38"]
[Board "157"]

1. d4 {[%clk 0:02:57]}  d5 {[%clk 0:03:00]} 2. Nc3 {[%clk 0:02:56]}  e6 {[%clk 0:02:57]} 3. Bf4 {[%clk 0:02:55]}  a6 {[%clk 0:02:52]} 4. e3 {[%clk 0:02:49]}  Nf6 {[%clk 0:02:51]} 5. Nf3 {[%clk 0:02:46]}  c5 {[%clk 0:02:50]} 6. Ne5 {[%clk 0:02:43]}  Nc6 {[%clk 0:02:45]} 7. Be2 {[%clk 0:02:33]}  Qb6 {[%clk 0:02:44]} 8. Na4 {[%clk 0:02:28]}  Qa5+ {[%clk 0:02:43]} 9. c3 {[%clk 0:02:28]}  cxd4 {[%clk 0:02:41]} 10. Nxc6 {[%clk 0:02:10]}  bxc6 {[%clk 0:02:39]} 11. exd4 {[%clk 0:02:06]}  Bd7 {[%clk 0:02:35]} 12. O-O {[%clk 0:02:02]}  c5 {[%clk 0:02:28]} 13. Nxc5 {[%clk 0:01:59]}  Bxc5 {[%clk 0:02:28]} 14. dxc5 {[%clk 0:01:58]}  Qxc5 {[%clk 0:02:29]} 15. Qd4 {[%clk 0:01:54]}  Qxd4 {[%clk 0:02:03]} 16. cxd4 {[%clk 0:01:54]}  Bb5 {[%clk 0:02:03]} 17. Rfe1 {[%clk 0:01:42]}  Kd7 {[%clk 0:01:57]} 18. Bf3 {[%clk 0:01:39]}  Rhc8 {[%clk 0:01:54]} 19. Rec1 {[%clk 0:01:34]}  Bd3 {[%clk 0:01:51]} 20. Be5 {[%clk 0:01:21]}  a5 {[%clk 0:01:43]} 21. g4 {[%clk 0:01:19]}  h6 {[%clk 0:01:31]} 22. Rd1 {[%clk 0:00:17]}  Ba6 {[%clk 0:01:25]} 23. Rd2 {[%clk 0:00:15]}  Ne8 {[%clk 0:01:18]} 24. Be2 {[%clk 0:00:12]}  Bxe2 {[%clk 0:01:17]} 25. Rxe2 {[%clk 0:00:13]}  a4 {[%clk 0:01:13]} 26. f3 {[%clk 0:00:11]}  Rc4 {[%clk 0:01:12]} 27. Kf2 {[%clk 0:00:10]}  Ra7 {[%clk 0:01:06]} 28. Ke3 {[%clk 0:00:09]}  Rb7 {[%clk 0:01:05]} 29. Rb1 {[%clk 0:00:04]}  f6 {[%clk 0:01:03]} 30. Bg3 {[%clk 0:00:04]}  Rcb4 {[%clk 0:01:01]} 31. h4 {[%clk 0:00:01]}  Nd6 {[%clk 0:01:01]} 32. Bxd6 {[%clk 0:00:01]}  Kxd6 {[%clk 0:01:02]} 33. h5 {[%clk 0:00:01]}  e5 {[%clk 0:01:01]} 34. dxe5+ {[%clk 0:00:01]}  fxe5 {[%clk 0:01:01]} 35. Kd3 {[%clk 0:00:02]}  Rf7 {[%clk 0:00:58]} 36. Rf2 {[%clk 0:00:02]}  Rxg4 {[%clk 0:00:58]} 37. Ke3 {[%clk 0:00:01]}  Rgf4 {[%clk 0:00:56]} 38. Rg1 {[%clk 0:00:01]}  e4 {[%clk 0:00:55]} 39. Rg6+ {[%clk 0:00:01]}  Kc5 {[%clk 0:00:55]} 40. Rc2+ {[%clk 0:00:01]}  Kb5 {[%clk 0:00:54]} 41. fxe4 {[%clk 0:00:02]}  Rxe4+ {[%clk 0:00:54]} 42. Kd3 {[%clk 0:00:02]}  Rf3+ {[%clk 0:00:53]} 43. Kd2 {[%clk 0:00:02]}  Rf2+ {[%clk 0:00:53]} 44. Kd3 {[%clk 0:00:02]}  Rxc2 {[%clk 0:00:51]} 45. Kxc2 {[%clk 0:00:03]}  Re5 {[%clk 0:00:51]} 46. Rxg7 {[%clk 0:00:02]}  Rxh5 {[%clk 0:00:51]} 47. Kd3 {[%clk 0:00:03]}  Rh2 {[%clk 0:00:49]} 48. Kc3 {[%clk 0:00:02]}  Kc5 {[%clk 0:00:44]} 49. Rh7 {[%clk 0:00:02]}  d4+ {[%clk 0:00:43]} 50. Kd3 {[%clk 0:00:03]}  Rh3+ {[%clk 0:00:39]} 51. Kd2 {[%clk 0:00:02]}  h5 {[%clk 0:00:38]} 52. Rc7+ {[%clk 0:00:01]}  Kd5 {[%clk 0:00:38]} 53. Ra7 {[%clk 0:00:01]}  Ke4 {[%clk 0:00:38]} 54. Re7+ {[%clk 0:00:01]}  Kd5 {[%clk 0:00:38]} 55. Rd7+ {[%clk 0:00:01]}  Ke5 {[%clk 0:00:38]} 56. Re7+ {[%clk 0:00:00]}  Kf4 {[%clk 0:00:38]} 0-1


[Site "https://www.chess.com"]

[Event "Titled Tuesday Blitz July 18 Early 2023"]
[White "Berezin, Viktor"]
[Black "Freile Martin, Javier"]
[WhiteFideId "14107872"]
[BlackFideId "3600165"]
[WhiteElo "2509"]
[BlackElo "2290"]
[Result "1-0"]
[Round "2"]
[TimeControl "180+2"]
[Date "2023.07.18"]
[WhiteClock "0:00:29"]
[BlackClock "0:00:00"]
[Board "158"]

1. d4 {[%clk 0:02:57]}  Nf6 {[%clk 0:02:59]} 2. Nf3 {[%clk 0:02:53]}  g6 {[%clk 0:02:58]} 3. g3 {[%clk 0:02:53]}  d6 {[%clk 0:02:57]} 4. Bg2 {[%clk 0:02:53]}  Bg7 {[%clk 0:02:57]} 5. O-O {[%clk 0:02:54]}  O-O {[%clk 0:02:57]} 6. a4 {[%clk 0:02:54]}  a5 {[%clk 0:02:55]} 7. Na3 {[%clk 0:02:54]}  Na6 {[%clk 0:02:48]} 8. Nc4 {[%clk 0:02:53]}  c6 {[%clk 0:02:47]} 9. b3 {[%clk 0:02:53]}  Be6 {[%clk 0:02:38]} 10. Ne3 {[%clk 0:02:42]}  Nd5 {[%clk 0:02:36]} 11. Nxd5 {[%clk 0:02:38]}  Bxd5 {[%clk 0:02:35]} 12. Bb2 {[%clk 0:02:37]}  Nc7 {[%clk 0:02:29]} 13. Re1 {[%clk 0:02:36]}  Be4 {[%clk 0:02:28]} 14. Nh4 {[%clk 0:02:25]}  Bxg2 {[%clk 0:02:27]} 15. Nxg2 {[%clk 0:02:26]}  d5 {[%clk 0:02:27]} 16. e4 {[%clk 0:02:22]}  dxe4 {[%clk 0:02:26]} 17. Rxe4 {[%clk 0:02:22]}  e6 {[%clk 0:02:20]} 18. h4 {[%clk 0:02:19]}  Nd5 {[%clk 0:02:07]} 19. Qf3 {[%clk 0:02:10]}  c5 {[%clk 0:02:02]} 20. Rd1 {[%clk 0:02:09]}  Rc8 {[%clk 0:01:55]} 21. c4 {[%clk 0:02:03]}  Nb4 {[%clk 0:01:41]} 22. dxc5 {[%clk 0:01:56]}  Bxb2 {[%clk 0:01:24]} 23. Rxd8 {[%clk 0:01:53]}  Rfxd8 {[%clk 0:01:24]} 24. h5 {[%clk 0:01:51]}  Rxc5 {[%clk 0:01:18]} 25. hxg6 {[%clk 0:01:48]}  hxg6 {[%clk 0:01:17]} 26. Nh4 {[%clk 0:01:39]}  Nc6 {[%clk 0:01:06]} 27. Qe3 {[%clk 0:01:24]}  Bd4 {[%clk 0:00:58]} 28. Qf3 {[%clk 0:01:02]}  Kg7 {[%clk 0:00:51]} 29. Rf4 {[%clk 0:00:58]}  Ne5 {[%clk 0:00:42]} 30. Qxb7 {[%clk 0:00:43]}  g5 {[%clk 0:00:36]} 31. Qe7 {[%clk 0:00:42]}  gxf4 {[%clk 0:00:19]} 32. Qxd8 {[%clk 0:00:42]}  Nc6 {[%clk 0:00:10]} 33. Qd6 {[%clk 0:00:37]}  fxg3 {[%clk 0:00:09]} 34. Qxg3+ {[%clk 0:00:33]}  Kf8 {[%clk 0:00:08]} 35. Nf3 {[%clk 0:00:33]}  Bf6 {[%clk 0:00:08]} 36. Qc7 {[%clk 0:00:30]}  Be7 {[%clk 0:00:00]} 37. Kf1 {[%clk 0:00:29]} 1-0


[Site "https://www.chess.com"]

[Event "Titled Tuesday Blitz July 18 Early 2023"]
[White "lgabi"]
[Black "Novikov, Evgenij"]
[BlackFideId "4125380"]
[WhiteElo "2287"]
[BlackElo "2507"]
[Result "0-1"]
[Round "2"]
[TimeControl "180+2"]
[Date "2023.07.18"]
[WhiteClock "0:01:03"]
[BlackClock "0:00:41"]
[Board "160"]

1. e4 {[%clk 0:03:00]}  c6 {[%clk 0:02:59]} 2. Nf3 {[%clk 0:02:51]}  d5 {[%clk 0:02:59]} 3. exd5 {[%clk 0:02:50]}  cxd5 {[%clk 0:03:00]} 4. Ne5 {[%clk 0:02:50]}  Nc6 {[%clk 0:02:54]} 5. Bb5 {[%clk 0:02:49]}  Bd7 {[%clk 0:02:54]} 6. Nxd7 {[%clk 0:02:48]}  Qxd7 {[%clk 0:02:55]} 7. d4 {[%clk 0:02:45]}  Nf6 {[%clk 0:02:54]} 8. c3 {[%clk 0:02:45]}  e6 {[%clk 0:02:53]} 9. Bf4 {[%clk 0:02:44]}  Bd6 {[%clk 0:02:52]} 10. Bxd6 {[%clk 0:02:41]}  Qxd6 {[%clk 0:02:53]} 11. Nd2 {[%clk 0:02:42]}  O-O {[%clk 0:02:53]} 12. O-O {[%clk 0:02:41]}  e5 {[%clk 0:02:48]} 13. dxe5 {[%clk 0:02:33]}  Nxe5 {[%clk 0:02:44]} 14. Nf3 {[%clk 0:02:33]}  Nxf3+ {[%clk 0:02:28]} 15. Qxf3 {[%clk 0:02:34]}  Qb6 {[%clk 0:02:28]} 16. Qe2 {[%clk 0:02:26]}  a6 {[%clk 0:02:08]} 17. Ba4 {[%clk 0:02:25]}  d4 {[%clk 0:02:01]} 18. c4 {[%clk 0:02:03]}  Qb4 {[%clk 0:01:47]} 19. Bc2 {[%clk 0:02:02]}  Rfe8 {[%clk 0:01:45]} 20. Qd3 {[%clk 0:01:44]}  Qxb2 {[%clk 0:01:37]} 21. Rab1 {[%clk 0:01:44]}  Qxa2 {[%clk 0:01:30]} 22. Rxb7 {[%clk 0:01:43]}  Rac8 {[%clk 0:01:25]} 23. Bb3 {[%clk 0:01:12]}  Qe2 {[%clk 0:00:52]} 24. Qxd4 {[%clk 0:01:11]}  Rcd8 {[%clk 0:00:45]} 25. Qa7 {[%clk 0:01:11]}  Ne4 {[%clk 0:00:40]} 26. Rxf7 {[%clk 0:01:06]}  Qxf1+ {[%clk 0:00:39]} 27. Kxf1 {[%clk 0:01:02]}  Nd2+ {[%clk 0:00:40]} 28. Kg1 {[%clk 0:01:03]}  Re1# {[%clk 0:00:41]} 0-1


[Site "https://www.chess.com"]

[Event "Titled Tuesday Blitz July 18 Early 2023"]
[White "Philippe, Guillaume"]
[Black "Spichkin, Alexander"]
[WhiteFideId "36048763"]
[BlackFideId "4144074"]
[WhiteElo "2507"]
[BlackElo "2281"]
[Result "1-0"]
[Round "2"]
[TimeControl "180+2"]
[Date "2023.07.18"]
[WhiteClock "0:01:32"]
[BlackClock "0:02:17"]
[Board "161"]

1. e4 {[%clk 0:03:00]}  e5 {[%clk 0:03:00]} 2. Nf3 {[%clk 0:03:00]}  d5 {[%clk 0:03:00]} 3. exd5 {[%clk 0:02:59]}  e4 {[%clk 0:03:00]} 4. Ne5 {[%clk 0:02:58]}  Qxd5 {[%clk 0:02:57]} 5. Nc4 {[%clk 0:02:58]}  Bf5 {[%clk 0:02:49]} 6. Ne3 {[%clk 0:02:58]}  Qe6 {[%clk 0:02:49]} 7. Bc4 {[%clk 0:02:57]}  Qg6 {[%clk 0:02:48]} 8. O-O {[%clk 0:02:47]}  Nd7 {[%clk 0:02:48]} 9. Nc3 {[%clk 0:02:17]}  Ngf6 {[%clk 0:02:42]} 10. d3 {[%clk 0:02:11]}  O-O-O {[%clk 0:02:40]} 11. Nxf5 {[%clk 0:02:08]}  Qxf5 {[%clk 0:02:40]} 12. Be3 {[%clk 0:01:43]}  Ne5 {[%clk 0:02:39]} 13. Qe2 {[%clk 0:01:39]}  Nxc4 {[%clk 0:02:30]} 14. dxc4 {[%clk 0:01:38]}  Bd6 {[%clk 0:02:30]} 15. Nb5 {[%clk 0:01:37]}  Bxh2+ {[%clk 0:02:20]} 16. Kxh2 {[%clk 0:01:37]}  Ng4+ {[%clk 0:02:20]} 17. Kg1 {[%clk 0:01:34]}  Qe5 {[%clk 0:02:20]} 18. Qxg4+ {[%clk 0:01:33]}  f5 {[%clk 0:02:20]} 19. Qf4 {[%clk 0:01:32]}  Qf6 {[%clk 0:02:17]} 20. Qxc7# {[%clk 0:01:32]} 1-0


[Site "https://www.chess.com"]

[Event "Titled Tuesday Blitz July 18 Early 2023"]
[White "Mikhaylova, Irina"]
[Black "AdvanceGuard4"]
[WhiteFideId "4109040"]
[WhiteElo "2279"]
[BlackElo "2506"]
[Result "1-0"]
[Round "2"]
[TimeControl "180+2"]
[Date "2023.07.18"]
[WhiteClock "0:00:12"]
[BlackClock "0:00:03"]
[Board "162"]

1. d4 {[%clk 0:03:00]}  Nf6 {[%clk 0:02:59]} 2. Nf3 {[%clk 0:03:01]}  g6 {[%clk 0:02:56]} 3. c4 {[%clk 0:03:01]}  Bg7 {[%clk 0:02:56]} 4. Nc3 {[%clk 0:03:01]}  O-O {[%clk 0:02:57]} 5. e4 {[%clk 0:03:02]}  d6 {[%clk 0:02:57]} 6. Be2 {[%clk 0:03:02]}  e5 {[%clk 0:02:58]} 7. dxe5 {[%clk 0:03:02]}  dxe5 {[%clk 0:02:58]} 8. Qxd8 {[%clk 0:03:03]}  Rxd8 {[%clk 0:02:58]} 9. Bg5 {[%clk 0:03:03]}  c6 {[%clk 0:02:51]} 10. Nxe5 {[%clk 0:03:03]}  Re8 {[%clk 0:02:46]} 11. O-O-O {[%clk 0:03:02]}  Na6 {[%clk 0:01:35]} 12. Rd6 {[%clk 0:03:00]}  Nxe4 {[%clk 0:01:30]} 13. Nxe4 {[%clk 0:02:58]}  Bxe5 {[%clk 0:01:30]} 14. Nf6+ {[%clk 0:02:58]}  Bxf6 {[%clk 0:01:28]} 15. Bxf6 {[%clk 0:02:58]}  Bf5 {[%clk 0:01:09]} 16. Bf3 {[%clk 0:01:09]}  Nb4 {[%clk 0:01:04]} 17. g4 {[%clk 0:00:57]}  Nxa2+ {[%clk 0:01:00]} 18. Kd2 {[%clk 0:00:47]}  Re6 {[%clk 0:00:56]} 19. c5 {[%clk 0:00:34]}  Rxd6+ {[%clk 0:00:36]} 20. cxd6 {[%clk 0:00:34]}  Be6 {[%clk 0:00:37]} 21. h4 {[%clk 0:00:29]}  Nb4 {[%clk 0:00:33]} 22. h5 {[%clk 0:00:28]}  Na6 {[%clk 0:00:23]} 23. b4 {[%clk 0:00:25]}  Nxb4 {[%clk 0:00:22]} 24. Rb1 {[%clk 0:00:25]}  a5 {[%clk 0:00:22]} 25. hxg6 {[%clk 0:00:21]}  fxg6 {[%clk 0:00:22]} 26. Kc3 {[%clk 0:00:19]}  h6 {[%clk 0:00:16]} 27. g5 {[%clk 0:00:18]}  hxg5 {[%clk 0:00:15]} 28. Be4 {[%clk 0:00:17]}  Rf8 {[%clk 0:00:14]} 29. Bxg5 {[%clk 0:00:17]}  Bf5 {[%clk 0:00:13]} 30. Kd4 {[%clk 0:00:15]}  Bd7 {[%clk 0:00:08]} 31. f4 {[%clk 0:00:13]}  Kf7 {[%clk 0:00:06]} 32. Kc5 {[%clk 0:00:12]}  Ke6 {[%clk 0:00:05]} 33. Bxg6 {[%clk 0:00:12]}  Rb8 {[%clk 0:00:03]} 34. f5+ {[%clk 0:00:12]}  Ke5 {[%clk 0:00:03]} 35. Re1# {[%clk 0:00:12]} 1-0


[Site "https://www.chess.com"]

[Event "Titled Tuesday Blitz July 18 Early 2023"]
[White "MFatigue"]
[Black "Magallanes, Rey Jomar"]
[BlackFideId "5205948"]
[WhiteElo "2506"]
[BlackElo "2277"]
[Result "1-0"]
[Round "2"]
[TimeControl "180+2"]
[Date "2023.07.18"]
[WhiteClock "0:02:38"]
[BlackClock "0:02:37"]
[Board "163"]

1. e4 {[%clk 0:03:00]}  c5 {[%clk 0:02:59]} 2. a3 {[%clk 0:03:00]}  d6 {[%clk 0:02:59]} 3. b4 {[%clk 0:03:01]}  b6 {[%clk 0:02:58]} 4. Bb2 {[%clk 0:03:01]}  Bb7 {[%clk 0:02:58]} 5. Nc3 {[%clk 0:03:01]}  Nf6 {[%clk 0:02:58]} 6. f3 {[%clk 0:02:58]}  e5 {[%clk 0:02:57]} 7. Bc4 {[%clk 0:02:57]}  Nc6 {[%clk 0:02:56]} 8. b5 {[%clk 0:02:56]}  Ne7 {[%clk 0:02:56]} 9. Nge2 {[%clk 0:02:56]}  d5 {[%clk 0:02:56]} 10. exd5 {[%clk 0:02:57]}  Nexd5 {[%clk 0:02:57]} 11. O-O {[%clk 0:02:55]}  Bd6 {[%clk 0:02:54]} 12. Ne4 {[%clk 0:02:54]}  Nxe4 {[%clk 0:02:54]} 13. fxe4 {[%clk 0:02:55]}  Nf6 {[%clk 0:02:54]} 14. d3 {[%clk 0:02:55]}  O-O {[%clk 0:02:53]} 15. Ng3 {[%clk 0:02:56]}  Bc8 {[%clk 0:02:51]} 16. Qf3 {[%clk 0:02:55]}  Bg4 {[%clk 0:02:51]} 17. Qf2 {[%clk 0:02:54]}  a6 {[%clk 0:02:50]} 18. a4 {[%clk 0:02:53]}  axb5 {[%clk 0:02:50]} 19. axb5 {[%clk 0:02:54]}  Qd7 {[%clk 0:02:47]} 20. Bc3 {[%clk 0:02:53]}  Nh5 {[%clk 0:02:41]} 21. Rxa8 {[%clk 0:02:43]}  Rxa8 {[%clk 0:02:39]} 22. Bxf7+ {[%clk 0:02:38]}  Kh8 {[%clk 0:02:39]} 23. Bxh5 {[%clk 0:02:37]}  Bxh5 {[%clk 0:02:37]} 24. Nxh5 {[%clk 0:02:38]} 1-0


[Site "https://www.chess.com"]

[Event "Titled Tuesday Blitz July 18 Early 2023"]
[White "arturdailima"]
[Black "LeoLV10"]
[WhiteElo "2276"]
[BlackElo "2504"]
[Result "0-1"]
[Round "2"]
[TimeControl "180+2"]
[Date "2023.07.18"]
[WhiteClock "0:00:29"]
[BlackClock "0:00:11"]
[Board "166"]

1. e4 {[%clk 0:03:00]}  c6 {[%clk 0:02:57]} 2. d4 {[%clk 0:02:58]}  d5 {[%clk 0:02:58]} 3. exd5 {[%clk 0:02:56]}  cxd5 {[%clk 0:02:59]} 4. c4 {[%clk 0:02:56]}  Nf6 {[%clk 0:02:57]} 5. Nc3 {[%clk 0:02:56]}  Nc6 {[%clk 0:02:51]} 6. Bg5 {[%clk 0:02:56]}  e6 {[%clk 0:02:47]} 7. Nf3 {[%clk 0:02:55]}  Be7 {[%clk 0:02:46]} 8. cxd5 {[%clk 0:02:55]}  exd5 {[%clk 0:02:40]} 9. h3 {[%clk 0:02:54]}  O-O {[%clk 0:02:37]} 10. Bd3 {[%clk 0:02:53]}  h6 {[%clk 0:02:34]} 11. Bh4 {[%clk 0:02:49]}  Re8 {[%clk 0:02:34]} 12. O-O {[%clk 0:02:49]}  Be6 {[%clk 0:02:28]} 13. Re1 {[%clk 0:02:45]}  Qb6 {[%clk 0:02:09]} 14. Na4 {[%clk 0:02:38]}  Qb4 {[%clk 0:02:03]} 15. a3 {[%clk 0:02:33]}  Qd6 {[%clk 0:02:02]} 16. Nc5 {[%clk 0:02:29]}  Nxd4 {[%clk 0:01:25]} 17. Nxd4 {[%clk 0:02:22]}  Qxc5 {[%clk 0:01:25]} 18. Nxe6 {[%clk 0:02:22]}  fxe6 {[%clk 0:01:26]} 19. Rxe6 {[%clk 0:02:23]}  Ne4 {[%clk 0:01:17]} 20. Bxe7 {[%clk 0:01:51]}  Rxe7 {[%clk 0:01:15]} 21. Bxe4 {[%clk 0:01:41]}  dxe4 {[%clk 0:00:48]} 22. Qb3 {[%clk 0:01:39]}  Kh8 {[%clk 0:00:44]} 23. Re1 {[%clk 0:01:28]}  Rf8 {[%clk 0:00:37]} 24. Re2 {[%clk 0:01:27]}  Qc1+ {[%clk 0:00:31]} 25. Kh2 {[%clk 0:01:27]}  Qc7+ {[%clk 0:00:25]} 26. g3 {[%clk 0:01:23]}  Ref7 {[%clk 0:00:24]} 27. Qe3 {[%clk 0:01:18]}  Rf3 {[%clk 0:00:23]} 28. Qd4 {[%clk 0:01:10]}  e3 {[%clk 0:00:18]} 29. Rxh6+ {[%clk 0:01:02]}  Kg8 {[%clk 0:00:18]} 30. Qd5+ {[%clk 0:01:02]}  R8f7 {[%clk 0:00:15]} 31. Re6 {[%clk 0:00:29]}  Rxf2+ {[%clk 0:00:11]} 0-1


[Site "https://www.chess.com"]

[Event "Titled Tuesday Blitz July 18 Early 2023"]
[White "MateoReyes"]
[Black "Zaichenko, Daria"]
[BlackFideId "4197453"]
[WhiteElo "2494"]
[BlackElo "2260"]
[Result "1-0"]
[Round "2"]
[TimeControl "180+2"]
[Date "2023.07.18"]
[WhiteClock "0:01:58"]
[BlackClock "0:01:58"]
[Board "171"]

1. Nf3 {[%clk 0:03:00]}  Nf6 {[%clk 0:02:59]} 2. d4 {[%clk 0:03:00]}  d5 {[%clk 0:02:58]} 3. c4 {[%clk 0:03:00]}  e6 {[%clk 0:02:58]} 4. Nc3 {[%clk 0:02:59]}  Be7 {[%clk 0:02:58]} 5. Bg5 {[%clk 0:02:58]}  O-O {[%clk 0:02:54]} 6. e3 {[%clk 0:02:58]}  Ne4 {[%clk 0:02:49]} 7. Bxe7 {[%clk 0:02:53]}  Qxe7 {[%clk 0:02:48]} 8. Qc2 {[%clk 0:02:53]}  f5 {[%clk 0:02:43]} 9. Bd3 {[%clk 0:02:51]}  c6 {[%clk 0:02:42]} 10. O-O {[%clk 0:02:45]}  Nd7 {[%clk 0:02:42]} 11. Nd2 {[%clk 0:02:43]}  Ndf6 {[%clk 0:02:41]} 12. f3 {[%clk 0:02:43]}  Nxd2 {[%clk 0:02:28]} 13. Qxd2 {[%clk 0:02:42]}  e5 {[%clk 0:02:28]} 14. dxe5 {[%clk 0:02:38]}  Qxe5 {[%clk 0:02:27]} 15. cxd5 {[%clk 0:02:37]}  cxd5 {[%clk 0:02:25]} 16. Rfe1 {[%clk 0:02:29]}  Bd7 {[%clk 0:02:23]} 17. Ne2 {[%clk 0:02:29]}  Rae8 {[%clk 0:02:17]} 18. Nd4 {[%clk 0:02:28]}  f4 {[%clk 0:02:14]} 19. Nc2 {[%clk 0:02:18]}  fxe3 {[%clk 0:02:02]} 20. Nxe3 {[%clk 0:02:01]}  Qd4 {[%clk 0:02:00]} 21. Bxh7+ {[%clk 0:01:59]}  Kxh7 {[%clk 0:01:58]} 22. Qxd4 {[%clk 0:01:58]} 1-0


[Site "https://www.chess.com"]

[Event "Titled Tuesday Blitz July 18 Early 2023"]
[White "rikchessmx"]
[Black "kuanysh1981"]
[WhiteElo "2251"]
[BlackElo "2492"]
[Result "1-0"]
[Round "2"]
[TimeControl "180+2"]
[Date "2023.07.18"]
[WhiteClock "0:00:09"]
[BlackClock "0:01:24"]
[Board "173"]

1. e4 {[%clk 0:03:00]}  e5 {[%clk 0:02:57]} 2. Nf3 {[%clk 0:03:00]}  d6 {[%clk 0:02:57]} 3. Bc4 {[%clk 0:02:57]}  Be7 {[%clk 0:02:57]} 4. c3 {[%clk 0:02:56]}  Nf6 {[%clk 0:02:57]} 5. Qe2 {[%clk 0:02:56]}  O-O {[%clk 0:02:56]} 6. h3 {[%clk 0:02:56]}  a6 {[%clk 0:02:55]} 7. Bb3 {[%clk 0:02:54]}  b5 {[%clk 0:02:55]} 8. d3 {[%clk 0:02:53]}  c5 {[%clk 0:02:54]} 9. Nbd2 {[%clk 0:02:49]}  Nc6 {[%clk 0:02:54]} 10. Nf1 {[%clk 0:02:49]}  h6 {[%clk 0:02:51]} 11. g4 {[%clk 0:02:49]}  Be6 {[%clk 0:02:52]} 12. Ng3 {[%clk 0:02:48]}  Na5 {[%clk 0:02:45]} 13. Bc2 {[%clk 0:02:48]}  Nh7 {[%clk 0:02:41]} 14. Nf5 {[%clk 0:02:47]}  Bg5 {[%clk 0:02:41]} 15. Be3 {[%clk 0:02:42]}  Bxe3 {[%clk 0:02:41]} 16. fxe3 {[%clk 0:02:42]}  b4 {[%clk 0:02:35]} 17. c4 {[%clk 0:02:41]}  Rb8 {[%clk 0:02:35]} 18. b3 {[%clk 0:02:41]}  Qf6 {[%clk 0:02:27]} 19. O-O {[%clk 0:02:40]}  g6 {[%clk 0:02:27]} 20. Ng3 {[%clk 0:02:20]}  Ng5 {[%clk 0:02:23]} 21. Nd4 {[%clk 0:00:13]}  Qd8 {[%clk 0:02:18]} 22. Nxe6 {[%clk 0:00:13]}  Nxe6 {[%clk 0:02:17]} 23. Rad1 {[%clk 0:00:12]}  Qh4 {[%clk 0:02:16]} 24. Kg2 {[%clk 0:00:12]}  Ng5 {[%clk 0:02:13]} 25. Rh1 {[%clk 0:00:13]}  Nc6 {[%clk 0:02:11]} 26. Rdf1 {[%clk 0:00:12]}  Rbe8 {[%clk 0:02:09]} 27. Qf2 {[%clk 0:00:12]}  Re6 {[%clk 0:02:06]} 28. Qe2 {[%clk 0:00:11]}  Rfe8 {[%clk 0:02:04]} 29. Qf2 {[%clk 0:00:10]}  Nd8 {[%clk 0:02:03]} 30. Ne2 {[%clk 0:00:11]}  Qxf2+ {[%clk 0:02:02]} 31. Rxf2 {[%clk 0:00:12]}  R6e7 {[%clk 0:02:01]} 32. Rhf1 {[%clk 0:00:12]}  Nge6 {[%clk 0:01:59]} 33. h4 {[%clk 0:00:12]}  Kg7 {[%clk 0:01:56]} 34. Kg3 {[%clk 0:00:12]}  Rh8 {[%clk 0:01:55]} 35. Rf6 {[%clk 0:00:12]}  Nb7 {[%clk 0:01:50]} 36. R6f2 {[%clk 0:00:12]}  Rf8 {[%clk 0:01:41]} 37. d4 {[%clk 0:00:06]}  cxd4 {[%clk 0:01:36]} 38. exd4 {[%clk 0:00:07]}  exd4 {[%clk 0:01:36]} 39. Rd1 {[%clk 0:00:06]}  Nbc5 {[%clk 0:01:32]} 40. Nxd4 {[%clk 0:00:06]}  a5 {[%clk 0:01:31]} 41. Nxe6+ {[%clk 0:00:04]}  fxe6 {[%clk 0:01:29]} 42. Rxd6 {[%clk 0:00:03]}  Rxf2 {[%clk 0:01:28]} 43. Kxf2 {[%clk 0:00:01]}  Rc7 {[%clk 0:01:27]} 44. Ke3 {[%clk 0:00:02]}  Kf6 {[%clk 0:01:27]} 45. Rb6 {[%clk 0:00:02]}  a4 {[%clk 0:01:25]} 46. bxa4 {[%clk 0:00:02]}  Nd7 {[%clk 0:01:24]} 47. Rxb4 {[%clk 0:00:01]}  Ne5 {[%clk 0:01:24]} 48. Bb3 {[%clk 0:00:02]}  Nxg4+ {[%clk 0:01:23]} 49. Kd4 {[%clk 0:00:02]}  Ne5 {[%clk 0:01:23]} 50. Rb6 {[%clk 0:00:01]}  g5 {[%clk 0:01:22]} 51. c5 {[%clk 0:00:02]}  gxh4 {[%clk 0:01:22]} 52. Rxe6+ {[%clk 0:00:02]}  Kg5 {[%clk 0:01:21]} 53. Rxe5+ {[%clk 0:00:03]}  Kg4 {[%clk 0:01:21]} 54. Be6+ {[%clk 0:00:03]}  Kg3 {[%clk 0:01:21]} 55. Kd5 {[%clk 0:00:03]}  h3 {[%clk 0:01:21]} 56. Rh5 {[%clk 0:00:03]}  h2 {[%clk 0:01:21]} 57. Rxh6 {[%clk 0:00:03]}  Rg7 {[%clk 0:01:20]} 58. Kd6 {[%clk 0:00:03]}  Kg2 {[%clk 0:01:17]} 59. e5 {[%clk 0:00:02]}  h1=Q {[%clk 0:01:17]} 60. Bd5+ {[%clk 0:00:03]}  Kf2 {[%clk 0:01:17]} 61. Rxh1 {[%clk 0:00:03]}  Ke3 {[%clk 0:01:18]} 62. Rh2 {[%clk 0:00:03]}  Kd4 {[%clk 0:01:18]} 63. Rh4+ {[%clk 0:00:03]}  Kc3 {[%clk 0:01:18]} 64. e6 {[%clk 0:00:04]}  Rg6 {[%clk 0:01:19]} 65. Kd7 {[%clk 0:00:04]}  Rg5 {[%clk 0:01:18]} 66. Bb3 {[%clk 0:00:03]}  Rxc5 {[%clk 0:01:18]} 67. Rh3+ {[%clk 0:00:04]}  Kb4 {[%clk 0:01:18]} 68. e7 {[%clk 0:00:05]}  Re5 {[%clk 0:01:18]} 69. e8=Q {[%clk 0:00:05]}  Rxe8 {[%clk 0:01:19]} 70. Kxe8 {[%clk 0:00:06]}  Ka3 {[%clk 0:01:19]} 71. Rh6 {[%clk 0:00:06]}  Kb4 {[%clk 0:01:20]} 72. a5 {[%clk 0:00:07]}  Ka3 {[%clk 0:01:21]} 73. a6 {[%clk 0:00:08]}  Kb2 {[%clk 0:01:21]} 74. a7 {[%clk 0:00:08]}  Ka1 {[%clk 0:01:22]} 75. a8=Q {[%clk 0:00:09]}  Kb2 {[%clk 0:01:23]} 76. Qg2+ {[%clk 0:00:09]}  Ka1 {[%clk 0:01:24]} 77. Rh1# {[%clk 0:00:09]} 1-0


[Site "https://www.chess.com"]

[Event "Titled Tuesday Blitz July 18 Early 2023"]
[White "Mathieu, Phileas"]
[Black "Joshi, Pankaj"]
[WhiteFideId "36048410"]
[BlackFideId "5006210"]
[WhiteElo "2479"]
[BlackElo "2242"]
[Result "1-0"]
[Round "2"]
[TimeControl "180+2"]
[Date "2023.07.18"]
[WhiteClock "0:01:51"]
[BlackClock "0:00:30"]
[Board "177"]

1. e4 {[%clk 0:03:00]}  c5 {[%clk 0:02:59]} 2. Nf3 {[%clk 0:02:59]}  d6 {[%clk 0:02:59]} 3. d4 {[%clk 0:02:59]}  cxd4 {[%clk 0:03:00]} 4. Qxd4 {[%clk 0:02:58]}  Nc6 {[%clk 0:02:59]} 5. Bb5 {[%clk 0:02:58]}  Bd7 {[%clk 0:02:54]} 6. Bxc6 {[%clk 0:02:58]}  Bxc6 {[%clk 0:02:55]} 7. Nc3 {[%clk 0:02:58]}  Nf6 {[%clk 0:02:56]} 8. Bg5 {[%clk 0:02:58]}  e6 {[%clk 0:02:55]} 9. O-O-O {[%clk 0:02:57]}  Be7 {[%clk 0:02:55]} 10. Qd3 {[%clk 0:02:58]}  O-O {[%clk 0:02:53]} 11. Nd4 {[%clk 0:02:58]}  Rc8 {[%clk 0:02:35]} 12. f4 {[%clk 0:02:53]}  a6 {[%clk 0:02:11]} 13. Kb1 {[%clk 0:02:52]}  b5 {[%clk 0:02:10]} 14. f5 {[%clk 0:02:08]}  b4 {[%clk 0:01:49]} 15. Nxc6 {[%clk 0:02:06]}  Rxc6 {[%clk 0:01:50]} 16. Ne2 {[%clk 0:02:06]}  e5 {[%clk 0:01:27]} 17. c4 {[%clk 0:01:52]}  bxc3 {[%clk 0:01:22]} 18. Nxc3 {[%clk 0:01:50]}  Nxe4 {[%clk 0:00:30]} 19. Qxe4 {[%clk 0:01:51]} 1-0


[Site "https://www.chess.com"]